bitfinex/quotes_ETHUSD_20250314
["timestamp","ask_amount","ask_price","bid_price","bid_amount"]
[1741965861302,0.06434774,1942.8,1942.5,5.14791]
[1741965861501,10.29424,1942.9,1942.5,5.14791]
[1741965861806,10.35858456,1942.9,1942.5,5.14791]
[1741965862012,5.14722,1942.8,1942.4,8.14819]
[1741965862207,5.14722,1942.8,1942.4,8.14809]
[1741965863008,5.14757,1942.7,1942.4,8.14809]
[1741965863217,5.14757,1942.7,1942.4,3.0]
[1741965863623,5.14757,1942.7,1942.4,8.14826]
[1741965865158,5.1467,1943.0,1942.7,5.14726]
[1741965865652,0.06433479,1943.1,1942.6,5.86663]
[1741965865866,5.89864,1943.4,1942.9,5.1468]
[1741965866160,1.92173228,1943.4,1942.9,5.77]
[1741965866365,5.14591,1943.3,1942.9,5.77]
[1741965866566,5.14597,1943.3,1942.9,10.91688]
[1741965866871,5.14623,1943.2,1942.9,5.77]
[1741965867224,5.14649,1943.1,1942.9,5.77]
[1741965867417,5.2108203,1943.1,1942.7,3.0]
[1741965867663,5.14713,1942.9,1942.6,5.758]
[1741965867962,5.14713,1942.9,1942.5,3.0]
[1741965867963,5.14747,1942.7,1942.5,3.0]
[1741965868131,5.14747,1942.7,1942.4,4.10090184]
[1741965868132,5.148,1942.5,1942.4,0.38200184]
[1741965868523,5.148,1942.5,1942.4,0.003953]
[1741965868733,5.21235418,1942.5,1942.4,0.003953]
[1741965870827,5.148,1942.5,1942.4,0.003953]
[1741965871757,5.21235088,1942.5,1942.4,0.003953]
[1741965872131,7.01795997,1942.5,1942.4,0.003953]
[1741965872854,12.96795997,1942.5,1942.4,3e-06]
[1741965873169,13.45360909,1942.5,1942.4,3e-06]
[1741965873527,5.15085,1941.5,1941.2,0.7189]
[1741965873731,5.15093,1941.4,1941.2,0.38700164]
[1741965874034,5.15085,1941.5,1941.2,5.15136]
[1741965874239,5.15085,1941.5,1941.1,10.89847]
[1741965874492,5.15145,1941.2,1941.1,5.747]
[1741965874847,5.21584635,1941.2,1941.1,5.747]
[1741965875046,5.21584635,1941.2,1940.9,17.025]
[1741965875047,10.36750635,1941.2,1940.9,17.025]
[1741965875231,10.36753635,1941.2,1940.9,17.025]
[1741965875434,5.1518,1941.1,1940.9,17.025]
[1741965875652,5.15198,1941.0,1940.7,0.7189]
[1741965875861,0.06440169,1940.9,1940.4,0.7189]
[1741965876066,5.1529,1940.7,1940.2,11.6139]
[1741965876263,5.15319,1940.6,1940.2,11.6139]
[1741965876562,5.15319,1940.6,1940.2,6.4599]
[1741965876563,0.06441599,1940.6,1940.2,6.4599]
[1741965876863,0.06441599,1940.6,1940.2,6.8462825]
[1741965876864,5.21759599,1940.6,1940.2,6.8462825]
[1741965877029,0.06441599,1940.6,1940.3,3.0]
[1741965877233,5.15266,1940.8,1940.4,5.15335]
[1741965877444,5.15283,1940.7,1940.3,5.1536]
[1741965877640,5.15283,1940.7,1940.3,8.1536]
[1741965877833,5.15283,1940.7,1940.3,13.30732]
[1741965878037,5.15266,1940.8,1940.3,10.45923498]
[1741965878238,10.3054,1940.8,1940.4,5.1535]
[1741965878440,5.15304,1940.6,1940.3,3.0]
[1741965878765,0.06441435,1940.5,1940.2,3.3863825]
[1741965878966,5.15318,1940.6,1940.2,8.5404125]
[1741965879266,5.21715829,1940.8,1940.3,3.0]
[1741965879473,5.21715829,1940.8,1940.3,8.15365]
[1741965879634,0.06441829,1940.8,1940.3,3.0]
[1741965879833,5.15322,1940.6,1940.3,3.0]
[1741965880033,5.21783064,1940.5,1940.3,3.0]
[1741965880272,5.15361,1940.4,1940.2,0.3863825]
[1741965880447,5.15361,1940.4,1940.1,17.027]
[1741965880771,5.15362,1940.4,1940.1,17.027]
[1741965880965,5.21783064,1940.5,1940.1,17.027]
[1741965881138,0.06442064,1940.5,1940.1,22.18121]
[1741965881461,0.06442065,1940.5,1940.1,22.18126]
[1741965881998,5.91454,1940.6,1940.2,5.1541]
[1741965882172,0.7615,1940.6,1940.3,5.15371]
[1741965882669,5.15335,1940.5,1940.1,22.56950206]
[1741965883036,5.15335,1940.5,1940.1,27.72376206]
[1741965883232,5.91457,1940.6,1940.2,5.15399]
[1741965883438,11.13228734,1940.6,1940.1,22.56940206]
[1741965883665,11.06787,1940.6,1940.1,22.56940206]
[1741965883850,5.91457,1940.6,1940.1,22.56939206]
[1741965884148,5.97898744,1940.6,1940.2,5.15397]
[1741965884351,0.06441744,1940.6,1940.3,5.15371]
[1741965884640,5.15283,1940.7,1940.3,5.15371]
[1741965884978,5.21762734,1940.6,1940.2,5.15397]
[1741965885182,5.21762734,1940.6,1940.1,22.56931206]
[1741965885348,0.06441734,1940.6,1940.3,5.15383]
[1741965885680,0.06441734,1940.6,1940.2,5.1541]
[1741965885877,5.21724734,1940.7,1940.3,5.15374]
[1741965886084,6.33373407,1940.7,1940.2,5.1541]
[1741965886381,5.21724734,1940.7,1940.2,10.30787]
[1741965886677,5.21724734,1940.7,1940.2,5.15389]
[1741965886858,5.15339,1940.5,1940.1,22.56951206]
[1741965887073,5.21781232,1940.5,1940.1,22.56951206]
[1741965887241,5.21781232,1940.5,1940.1,27.72388206]
[1741965887591,0.06442232,1940.5,1940.2,5.15406]
[1741965887943,0.06442232,1940.5,1940.1,22.56944206]
[1741965888246,5.21784232,1940.5,1940.1,17.41514206]
[1741965888451,5.21784232,1940.5,1940.1,22.56938206]
[1741965888654,5.15357,1940.4,1940.1,17.41514206]
[1741965888864,5.21784232,1940.5,1940.1,17.41514206]
[1741965889270,0.499,1940.1,1940.0,0.514433]
[1741965890655,5.65337,1940.1,1940.0,0.514433]
[1741965890955,0.499,1940.1,1940.0,0.514433]
[1741965891342,5.65337,1940.1,1940.0,0.514433]
[1741965891676,0.56343379,1940.1,1940.0,0.514433]
[1741965891876,5.71780379,1940.1,1940.0,0.514433]
[1741965892072,6.80500217,1940.1,1940.0,0.514433]
[1741965892274,13.52810217,1940.1,1940.0,0.514433]
[1741965892475,13.46366838,1940.1,1940.0,0.514433]
[1741965892685,5.15612,1939.5,1939.1,5.15698]
[1741965892975,0.7636,1939.4,1939.0,5.15717]
[1741965893176,0.06446128,1939.3,1939.1,3.0]
[1741965893363,0.06446128,1939.3,1938.9,9.36406367]
[1741965893565,5.22097128,1939.3,1938.9,0.7189]
[1741965893771,5.15696,1939.2,1938.9,0.39011496]
[1741965894071,0.06446797,1939.1,1938.8,5.15769]
[1741965894268,5.22137918,1939.2,1938.8,3.0]
[1741965894583,6.7136,1939.4,1939.0,5.15719]
[1741965894748,5.22098952,1939.3,1938.8,5.15768]
[1741965894948,0.06446952,1939.3,1938.8,2.77451554]
[1741965895185,6.7136,1939.4,1939.0,5.15714]
[1741965895477,6.7136,1939.4,1939.1,3.0]
[1741965896292,6.7136,1939.4,1939.1,8.15699]
[1741965896587,6.7136,1939.4,1939.1,8.1569]
[1741965896789,6.77805792,1939.4,1939.1,8.1569]
[1741965897078,11.93428792,1939.4,1939.1,3.0]
[1741965897379,5.15651,1939.3,1939.1,3.0]
[1741965897581,5.22128285,1939.2,1938.9,3.48767367]
[1741965897769,5.22135285,1939.2,1938.8,3.0]
[1741965897964,0.06446285,1939.2,1938.8,8.18342308]
[1741965898488,13.57898479,1939.4,1938.9,5.15745]
[1741965898690,5.22108484,1939.3,1938.8,8.1578]
[1741965898879,5.22108484,1939.3,1938.8,3.0]
[1741965899049,5.15704,1939.1,1938.8,3.0]
[1741965899251,5.22150592,1939.1,1938.8,3.0]
[1741965899588,0.06446592,1939.1,1938.8,3.0]
[1741965900090,0.06446705,1939.2,1938.8,8.15778]
[1741965900385,5.22138705,1939.2,1938.8,3.0]
[1741965900882,5.15754,1939.0,1938.7,17.042]
[1741965901051,0.06447245,1938.9,1938.6,0.1164633]
[1741965901251,5.15809,1938.7,1938.6,0.1164633]
[1741965901454,6.05127125,1938.7,1938.6,0.1164633]
[1741965902659,5.98679,1938.7,1938.6,0.1164633]
[1741965902864,7.16574418,1938.7,1938.6,0.1164633]
[1741965903064,7.16574413,1938.7,1938.6,0.1164633]
[1741965903270,7.101251,1938.7,1938.6,0.1164633]
[1741965903775,7.16574305,1938.7,1938.6,0.1164633]
[1741965904090,13.11814305,1938.7,1938.6,0.1164633]
[1741965904256,13.053651,1938.7,1938.6,0.1164633]
[1741965906392,11.93919,1938.7,1938.6,0.1164633]
[1741965906592,5.95,1938.7,1938.6,0.1164633]
[1741965906891,5.22241153,1938.8,1938.6,0.1164633]
[1741965907255,5.15809,1938.7,1938.6,0.1164633]
[1741965909168,0.06448835,1938.7,1938.6,0.1164633]
[1741965909353,5.15752,1939.0,1938.6,5.2746833]
[1741965909558,5.22196663,1939.0,1938.6,0.1164633]
[1741965909758,0.06447663,1939.0,1938.6,0.1164633]
[1741965909959,0.06447663,1939.0,1938.6,5.2747733]
[1741965910193,5.22186663,1939.0,1938.6,5.2747733]
[1741965910487,5.95,1939.3,1938.8,8.64539367]
[1741965910488,5.15677,1939.2,1938.8,8.64539367]
[1741965910703,5.22123471,1939.2,1938.8,8.64539367]
[1741965911001,5.1574,1939.0,1938.6,4.87867963]
[1741965911176,5.2220637,1938.9,1938.6,1.15977963]
[1741965911377,5.2220637,1938.9,1938.6,0.1164633]
[1741965911582,5.2220637,1938.9,1938.6,5.2747633]
[1741965911583,0.0644737,1938.9,1938.6,5.2747633]
[1741965911782,5.9422,1939.0,1938.6,5.2747633]
[1741965912093,5.22208737,1938.9,1938.6,0.1164633]
[1741965912459,5.15809,1938.7,1938.6,0.1164633]
[1741965912804,7.0710858,1938.7,1938.6,0.1164633]
[1741965914363,13.0210858,1938.7,1938.6,0.1164633]
[1741965914561,12.9566,1938.7,1938.6,0.1164633]
[1741965914795,18.5586,1938.7,1938.6,3.3e-06]
[1741965916398,11.92499,1938.7,1938.6,3.3e-06]
[1741965916575,0.7644,1939.0,1938.6,5.1582133]
[1741965916784,0.06447859,1939.0,1938.6,3.3e-06]
[1741965916978,0.8161,1939.2,1938.8,5.15779]
[1741965916979,0.06447224,1939.1,1938.8,5.15779]
[1741965917171,0.06447024,1939.1,1938.9,5.15746]
[1741965917395,5.15573,1939.6,1939.1,5.15678]
[1741965917595,5.15625,1939.4,1939.0,5.15729]
[1741965917827,0.06445963,1939.3,1939.0,5.15729]
[1741965918185,5.22084962,1939.4,1938.9,8.64517367]
[1741965918372,5.15671,1939.3,1938.9,4.91953094]
[1741965918594,5.15671,1939.3,1938.9,3.0]
[1741965918595,0.0644631,1939.2,1938.9,3.0]
[1741965918802,5.2212731,1939.2,1938.9,3.0]
[1741965919011,0.8152631,1939.2,1938.7,0.7189]
[1741965919324,5.15726,1939.1,1938.6,3.3e-06]
[1741965919493,0.06447875,1939.0,1938.6,0.51585463]
[1741965919808,0.06447875,1939.0,1938.6,3.3e-06]
[1741965919809,5.15764,1938.9,1938.6,3.3e-06]
[1741965920112,0.06447894,1938.8,1938.6,3.3e-06]
[1741965920285,10.3147,1939.0,1938.6,3.3e-06]
[1741965920490,5.15799,1938.8,1938.6,3.3e-06]
[1741965920711,5.22257293,1938.7,1938.6,3.3e-06]
[1741965921204,5.15799,1938.8,1938.6,3.3e-06]
[1741965921205,0.06448294,1938.8,1938.6,3.3e-06]
[1741965921406,5.1573,1939.0,1938.6,5.67420663]
[1741965921609,6.7008,1939.2,1938.6,0.51585663]
[1741965921805,0.06447587,1939.1,1938.7,3.7189]
[1741965921982,5.15784,1938.8,1938.6,3.3e-06]
[1741965922375,5.22256722,1938.7,1938.6,3.3e-06]
[1741965923106,0.7508,1939.2,1938.6,0.7189033]
[1741965923314,5.15773,1938.9,1938.6,3.3e-06]
[1741965923499,5.15747,1939.0,1938.6,3.3e-06]
[1741965923812,5.90782,1939.2,1938.6,0.51586463]
[1741965924017,5.22160387,1939.1,1938.7,5.15795]
[1741965924200,5.22152387,1939.1,1938.7,5.15795]
[1741965924402,5.15651,1939.3,1938.8,5.15758]
[1741965924601,5.22133886,1939.2,1938.8,5.1578]
[1741965924809,0.06446886,1939.2,1938.8,5.15765]
[1741965924984,0.06446886,1939.2,1938.8,5.673415]
[1741965925319,5.95948,1939.5,1939.0,5.15725]
[1741965925620,5.15576,1939.6,1939.2,5.15669]
[1741965925824,0.06445352,1939.6,1939.0,5.15707]
[1741965925984,0.06445352,1939.6,1938.9,0.7189]
[1741965925985,5.15696,1939.2,1938.9,0.7189]
[1741965926180,0.06446483,1939.1,1938.9,0.7189]
[1741965926384,5.15668,1939.3,1938.8,5.55225318]
[1741965926606,5.15668,1939.3,1938.9,5.15747]
[1741965926803,5.15705,1939.1,1938.6,0.7189033]
[1741965926986,5.15768,1938.9,1938.6,3.3e-06]
[1741965927192,0.06447687,1938.8,1938.6,3.3e-06]
[1741965927399,5.15703,1939.1,1938.7,5.15789]
[1741965927604,0.06447349,1939.1,1938.7,5.15789]
[1741965927816,5.15746,1939.0,1938.6,3.3e-06]
[1741965928119,0.06447115,1938.9,1938.6,3.3e-06]
[1741965928504,5.15793,1938.8,1938.6,3.3e-06]
[1741965928708,5.22213115,1938.9,1938.6,3.3e-06]
[1741965929314,5.15734,1939.0,1938.6,3.3e-06]
[1741965929640,5.15642,1939.4,1938.9,5.15744]
[1741965929792,5.15642,1939.4,1938.9,5.745074]
[1741965930139,5.15577,1939.6,1939.2,5.15665]
[1741965930292,0.06445399,1939.5,1939.1,5.15695]
[1741965930489,0.06445399,1939.5,1939.0,0.55]
[1741965930791,0.06445362,1939.6,1939.3,5.87522]
[1741965931018,0.06445095,1939.7,1939.3,6.978418]
[1741965931526,0.06445095,1939.7,1939.3,1.822098]
[1741965931733,11.10451,1940.1,1939.6,5.15557]
[1741965931886,0.06444228,1940.0,1939.6,5.15557]
[1741965932086,5.21918228,1940.0,1939.5,5.15578]
[1741965932326,10.37398228,1940.0,1939.5,5.15578]
[1741965932530,0.8225,1940.2,1939.5,5.15578]
[1741965932531,0.8225,1940.2,1939.9,5.1549]
[1741965932836,5.15367,1940.4,1939.9,10.30962]
[1741965933333,5.15367,1940.4,1939.9,10.76882]
[1741965933334,0.06443087,1940.3,1939.9,10.76882]
[1741965933487,0.06442762,1940.4,1940.0,5.15447]
[1741965933682,5.15324,1940.6,1940.1,5.15436]
[1741965933887,5.21773437,1940.5,1940.0,6.231417]
[1741965934246,5.21776437,1940.5,1940.1,5.15437]
[1741965934537,0.06442437,1940.5,1940.1,5.15437]
[1741965934838,0.06442437,1940.5,1940.1,5.15418]
[1741965935004,0.06442437,1940.5,1940.2,5.1541]
[1741965935202,0.7878,1940.7,1940.3,5.15369]
[1741965935399,0.85221723,1940.7,1940.2,0.7189]
[1741965935611,5.15332,1940.5,1940.1,5.15416]
[1741965936133,5.21773895,1940.5,1940.0,9.231467]
[1741965936429,5.15402,1940.3,1939.9,11.4878]
[1741965936619,0.06442765,1940.3,1939.9,11.4878]
[1741965937015,5.21839765,1940.3,1939.9,11.4878]
[1741965937220,0.06442765,1940.3,1939.9,11.0285]
[1741965937393,0.06442765,1940.3,1940.0,5.15461]
[1741965937591,0.06442765,1940.3,1939.9,7.89245]
[1741965937808,0.06442765,1940.3,1939.9,11.02833]
[1741965938010,0.06442765,1940.3,1939.9,5.8736]
[1741965938233,5.15452,1940.1,1939.8,9.16]
[1741965938455,0.06443593,1940.0,1939.8,9.16]
[1741965938737,5.15505,1939.9,1939.5,5.53506746]
[1741965938912,5.21884259,1940.1,1939.7,5.15533]
[1741965939110,5.15465,1940.0,1939.6,5.15547]
[1741965939298,5.21884259,1940.1,1939.6,5.15547]
[1741965939849,10.37346259,1940.1,1939.6,5.15547]
[1741965940048,5.21884259,1940.1,1939.6,5.15547]
[1741965940340,0.8257,1940.5,1939.9,8.15488]
[1741965940551,0.8257,1940.5,1940.1,5.15424]
[1741965940844,5.21777455,1940.5,1940.1,5.15414]
[1741965941138,0.06442455,1940.5,1940.0,3.0]
[1741965941339,5.15306,1940.6,1940.2,5.15406]
[1741965941643,10.37144464,1940.5,1940.1,5.15416]
[1741965941846,5.15372,1940.4,1940.0,5.15455]
[1741965942175,0.06442464,1940.5,1940.0,5.593]
[1741965942306,0.06441997,1940.6,1940.3,5.15371]
[1741965942700,5.97857,1940.7,1940.4,5.15338]
[1741965942701,0.8257,1940.7,1940.4,5.15338]
[1741965942934,0.89011665,1940.7,1940.3,3.7189]
[1741965943134,5.15345,1940.5,1940.1,5.15425]
[1741965943440,0.06442264,1940.5,1940.2,5.15395]
[1741965943612,5.97855,1940.7,1940.3,5.1538]
[1741965943942,5.95,1940.9,1940.3,5.1538]
[1741965943943,11.10226,1940.9,1940.3,5.20514723]
[1741965944239,0.06441216,1940.8,1940.2,5.15408]
[1741965944533,0.7781,1941.2,1940.4,3.0]
[1741965944699,0.0644046,1941.1,1940.7,5.15259]
[1741965944899,5.21635278,1941.1,1940.6,5.15291]
[1741965945125,5.15213,1941.0,1940.6,5.15291]
[1741965945318,0.7781,1941.2,1940.8,5.15242]
[1741965945540,0.06440603,1941.1,1940.8,5.15242]
[1741965945851,0.06440603,1941.1,1940.7,5.15276]
[1741965945852,5.21624603,1941.1,1940.7,5.15276]
[1741965946053,5.21624603,1941.1,1940.6,5.15302]
[1741965946054,5.15234,1940.9,1940.5,10.76014]
[1741965946255,0.06440936,1940.9,1940.5,5.607]
[1741965946444,0.06440936,1941.0,1940.7,5.15274]
[1741965946641,1.1145816,1941.1,1940.7,0.77042377]
[1741965946815,0.84250023,1941.2,1940.8,5.15229]
[1741965947014,5.95,1941.3,1941.1,5.15156]
[1741965947240,6.7336,1941.7,1941.2,5.15123]
[1741965947444,6.7336,1941.7,1941.0,14.24577361]
[1741965947445,0.06438643,1941.6,1941.0,14.24577361]
[1741965947659,10.30154,1941.5,1941.0,5.608]
[1741965947821,6.24561675,1941.4,1941.0,5.608]
[1741965948022,0.06439275,1941.4,1941.0,10.7598]
[1741965948232,0.06439275,1941.4,1941.1,5.15167]
[1741965948438,0.06439275,1941.4,1941.0,10.7598]
[1741965948439,5.21547275,1941.4,1941.0,10.7598]
[1741965948633,5.21547275,1941.4,1941.0,5.608]
[1741965948837,5.15135,1941.3,1941.0,5.608]
[1741965949065,5.21605575,1941.2,1941.0,5.608]
[1741965949243,5.15122,1941.3,1941.0,5.608]
[1741965949441,0.06439647,1941.2,1941.0,5.608]
[1741965950062,5.15067,1941.5,1941.1,5.15165]
[1741965950263,5.15067,1941.5,1941.0,9.09395361]
[1741965950264,0.06439229,1941.5,1941.0,9.09395361]
[1741965950466,6.01438566,1941.6,1941.2,5.15142]
[1741965950764,11.16494566,1941.6,1941.2,5.15142]
[1741965950968,5.15089,1941.5,1941.0,10.75989]
[1741965951153,0.06439278,1941.4,1941.0,5.608]
[1741965951465,5.15151,1941.2,1941.0,5.608]
[1741965951672,0.06439941,1941.1,1941.0,5.608]
[1741965952170,5.15207,1941.0,1940.8,5.59]
[1741965952327,0.06440607,1940.9,1940.5,11.46718]
[1741965952523,0.06440607,1940.9,1940.6,3.0]
[1741965952866,5.21678607,1940.9,1940.5,11.46215]
[1741965953049,5.15292,1940.7,1940.2,5.15409]
[1741965953256,5.15372,1940.4,1940.0,5.15461]
[1741965953475,5.15372,1940.4,1940.0,5.15443]
[1741965953476,0.06442469,1940.4,1940.0,5.15443]
[1741965953798,5.95014,1940.3,1939.9,27.79774]
[1741965954003,5.15426,1940.2,1939.9,17.048]
[1741965954153,0.06443093,1940.1,1939.9,17.048]
[1741965954488,5.95018,1940.3,1939.9,5.1547]
[1741965954660,5.15371,1940.4,1940.0,5.15454]
[1741965954857,0.8167,1940.5,1940.2,5.15399]
[1741965955061,0.06442427,1940.6,1940.2,10.7561]
[1741965955285,0.06442427,1940.6,1940.2,5.602]
[1741965955286,5.15374,1940.4,1940.2,5.602]
[1741965955488,0.06442583,1940.3,1940.2,5.602]
[1741965955789,5.97906583,1940.3,1939.9,3.0]
[1741965955970,5.1544,1940.1,1939.9,3.0]
[1741965956283,5.15411,1940.2,1939.9,3.0]
[1741965956284,0.7608,1940.3,1939.9,5.15464]
[1741965956445,5.15344,1940.5,1939.9,5.15464]
[1741965956446,0.7608,1940.5,1940.2,5.15409]
[1741965956642,0.8161,1940.7,1940.3,5.66753877]
[1741965956870,0.06441391,1940.6,1940.3,5.616]
[1741965957053,0.06442001,1940.6,1940.3,5.616]
[1741965957281,0.8161,1940.7,1940.3,10.76974]
[1741965957586,5.15315,1940.6,1940.3,5.616]
[1741965957751,5.96891,1940.7,1940.3,10.7698]
[1741965957948,0.06441736,1940.6,1940.3,10.7698]
[1741965958343,10.37069736,1940.6,1940.3,5.616]
[1741965958654,5.15345,1940.5,1940.3,5.616]
[1741965959151,0.06442166,1940.4,1940.3,5.616]
[1741965959352,0.06442343,1940.5,1940.3,5.616]
[1741965959664,6.27178974,1940.6,1940.3,5.616]
[1741965959848,0.06442342,1940.5,1940.3,5.616]
[1741965960049,5.21784342,1940.5,1940.3,5.616]
[1741965960350,5.21789342,1940.5,1940.3,5.616]
[1741965960566,5.85155074,1940.5,1940.3,5.616]
[1741965960770,5.21780342,1940.5,1940.3,5.616]
[1741965960986,5.969,1940.7,1940.3,5.616]
[1741965961190,5.21746341,1940.6,1940.3,5.616]
[1741965961355,10.30631,1940.6,1940.3,5.616]
[1741965961557,5.15304,1940.6,1940.3,5.616]
[1741965962450,0.8161,1940.7,1940.3,5.616]
[1741965962651,5.96892,1940.7,1940.3,5.616]
[1741965962851,11.12191,1940.7,1940.3,10.7697]
[1741965963052,0.06442154,1940.6,1940.3,10.76969]
[1741965963248,0.06441573,1940.8,1940.4,5.15333]
[1741965963452,5.21703573,1940.8,1940.4,5.15333]
[1741965963646,0.06441573,1940.8,1940.4,5.15333]
[1741965963853,0.06441573,1940.8,1940.5,5.15321]
[1741965964057,0.7757,1940.9,1940.6,5.15294]
[1741965964257,0.06440781,1941.0,1940.6,0.52044693]
[1741965964483,0.7551,1941.1,1940.7,5.15256]
[1741965964856,0.06440584,1941.0,1940.6,5.15303]
[1741965965077,0.06440584,1941.0,1940.5,3.0]
[1741965965386,5.15252,1940.8,1940.5,3.0]
[1741965965558,5.21693156,1940.8,1940.4,14.60837922]
[1741965965958,5.21693156,1940.8,1940.4,11.12242561]
[1741965966583,0.06441156,1940.8,1940.5,5.15321]
[1741965966794,5.21669057,1940.9,1940.4,16.09269178]
[1741965966997,5.15146,1941.2,1940.5,5.20481524]
[1741965966998,5.15206,1941.0,1940.5,5.20481524]
[1741965967160,0.06440662,1940.9,1940.6,5.1529]
[1741965967361,0.06440662,1940.9,1940.5,5.1533]
[1741965967558,0.06440662,1940.9,1940.5,10.30644]
[1741965967903,0.06440662,1940.9,1940.6,5.15303]
[1741965968459,5.21646757,1941.0,1940.6,10.30598]
[1741965968668,5.15204,1941.0,1940.6,5.15295]
[1741965968896,5.21644753,1941.0,1940.6,5.15295]
[1741965969116,5.21644753,1941.0,1940.6,10.30583]
[1741965969261,0.06440753,1941.0,1940.6,5.15288]
[1741965969460,5.21638753,1941.0,1940.6,5.15288]
[1741965969714,0.06440753,1941.0,1940.6,10.30573]
[1741965969987,5.15147,1941.2,1940.7,5.15265]
[1741965970187,0.7615,1941.3,1940.8,5.15225]
[1741965970488,0.06439881,1941.5,1941.4,5.15092]
[1741965970693,0.8236,1941.6,1941.4,5.15092]
[1741965970694,0.8236,1941.9,1941.5,5.15065]
[1741965970988,0.06438151,1941.8,1941.4,10.72384]
[1741965971191,0.8236,1941.9,1941.5,0.05150599]
[1741965971361,5.14917,1942.1,1941.7,4.20485361]
[1741965971688,0.8236,1942.4,1941.8,5.14979]
[1741965971689,5.14855,1942.3,1941.8,5.14979]
[1741965971891,5.14932,1942.1,1941.7,3.48595361]
[1741965972090,5.21373001,1942.0,1941.6,3.0]
[1741965972305,5.14927,1942.1,1941.7,5.1501]
[1741965972589,5.21369992,1942.0,1941.7,3.0]
[1741965972763,0.06436992,1942.0,1941.7,3.0]
[1741965973171,5.97198,1942.4,1941.9,5.14947]
[1741965973487,0.8236,1942.4,1941.9,5.575]
[1741965973690,0.8236,1942.4,1942.0,5.1492]
[1741965973871,6.781,1942.6,1942.1,5.14881]
[1741965974067,6.781,1942.6,1942.2,5.1487]
[1741965974393,0.831,1942.6,1942.2,5.14869]
[1741965974599,0.06435394,1942.5,1942.1,8.14904]
[1741965974767,0.06435394,1942.5,1942.1,9.82747136]
[1741965975090,0.06435394,1942.5,1942.2,5.14865]
[1741965975310,0.0643539,1942.5,1942.2,5.14865]
[1741965975607,0.831,1942.6,1942.2,5.14865]
[1741965975910,0.831,1942.6,1942.2,5.14864]
[1741965976131,0.831,1942.6,1942.2,6.65138044]
[1741965976338,0.06435387,1942.5,1942.2,1.50276044]
[1741965976493,0.06435387,1942.5,1941.9,6.72452364]
[1741965976494,5.14836,1942.4,1941.9,11.87396364]
[1741965976697,5.14836,1942.4,1942.0,3.0]
[1741965976698,0.0643593,1942.3,1942.0,3.0]
[1741965976901,5.2128993,1942.3,1941.9,5.575]
[1741965977127,5.14906,1942.1,1941.6,5.54693702]
[1741965977314,5.21342896,1942.1,1941.7,5.554]
[1741965977615,5.21345954,1942.1,1941.8,3.0]
[1741965977829,0.8247,1942.2,1941.8,8.14972]
[1741965978011,0.8247,1942.2,1941.8,3.0]
[1741965978215,0.8247,1942.2,1941.7,5.554]
[1741965978216,5.14937,1942.0,1941.7,5.554]
[1741965978439,0.06437128,1941.9,1941.7,5.547]
[1741965978610,5.14986,1941.8,1941.7,5.547]
[1741965978813,5.21406128,1941.9,1941.7,5.547]
[1741965979034,5.14986,1941.8,1941.4,5.546]
[1741965979228,0.06437826,1941.7,1941.3,3.48595361]
[1741965979427,5.15077,1941.5,1941.3,5.546]
[1741965979624,0.0643894,1941.4,1941.0,11.09251751]
[1741965979808,5.2154394,1941.4,1941.0,5.94065751]
[1741965980144,0.06439568,1941.3,1941.0,0.39365751]
[1741965980436,0.06439568,1941.3,1940.9,10.70718]
[1741965980634,5.21558568,1941.3,1940.9,10.70718]
[1741965980799,10.36646572,1941.4,1940.9,10.70718]
[1741965980998,5.21533572,1941.4,1940.9,10.70718]
[1741965981205,5.21533572,1941.4,1941.0,5.1518]
[1741965981400,0.7923,1941.6,1941.3,5.15109]
[1741965981604,0.8566872,1941.6,1941.2,5.15124]
[1741965981836,0.7923,1941.6,1941.4,5.15091]
[1741965982040,0.8183,1941.8,1941.4,5.548]
[1741965982256,0.0643775,1942.0,1941.7,5.1499]
[1741965982401,0.836871,1942.1,1941.8,5.14971]
[1741965982600,5.14855,1942.3,1941.9,10.70259]
[1741965982800,5.14924,1942.1,1941.9,5.553]
[1741965982996,5.1496,1941.9,1941.6,5.559]
[1741965983204,0.06437784,1941.9,1941.6,5.559]
[1741965983660,0.8635776,1942.0,1941.6,5.559]
[1741965984162,0.06437073,1942.2,1941.8,5.14974]
[1741965984350,0.06437073,1942.2,1941.6,6.929964]
[1741965984667,10.2962,1942.5,1942.0,5.14931]
[1741965984821,0.06435949,1942.4,1942.1,5.14895]
[1741965985016,5.14807,1942.5,1942.1,15.86985]
[1741965985260,0.7992,1942.6,1942.1,7.16413374]
[1741965985459,0.06435388,1942.5,1942.2,3.0]
[1741965985655,0.06435388,1942.5,1942.2,8.14873]
[1741965985960,0.7992,1942.6,1942.2,8.14869]
[1741965986133,0.06435417,1942.5,1942.2,3.0]
[1741965986455,5.21235417,1942.5,1942.2,3.0]
[1741965986619,0.06435417,1942.5,1942.2,3.0]
[1741965986819,0.06435417,1942.5,1942.2,9.0059]
[1741965987045,5.21245417,1942.5,1942.2,3.0]
[1741965987277,5.14837,1942.4,1942.2,3.0]
[1741965987455,5.1481,1942.5,1942.2,3.0]
[1741965987645,0.06435915,1942.4,1942.2,3.0]
[1741965989741,0.7921,1942.2,1941.9,5.14944]
[1741965989940,0.85646942,1942.2,1941.9,5.14944]
[1741965990146,5.95,1942.3,1942.0,5.14927]
[1741965990451,0.06435912,1942.4,1942.1,5.14902]
[1741965990661,0.86885911,1942.5,1942.1,15.91239729]
[1741965990870,0.86885911,1942.5,1942.2,5.1487]
[1741965991093,0.86885911,1942.5,1942.3,5.1484]
[1741965991229,0.06435141,1942.7,1942.4,5.1481]
[1741965991436,0.81,1942.8,1942.6,5.14773]
[1741965991662,16.2436,1943.0,1942.6,5.14773]
[1741965991933,11.09673,1943.0,1942.6,5.14773]
[1741965992133,11.09673,1943.0,1942.4,5.1997053]
[1741965992134,5.2113038,1942.9,1942.5,8.14781]